[Event "Titled Tuesday Blitz February 22 Early 2022"]
[White "Borisova, Ekaterina"]
[Black "Mikhalsky, Vladimir"]
[WhiteFideId "34124184"]
[BlackFideId "14144352"]
[WhiteElo "2034"]
[BlackElo "2248"]
[Result "1-0"]
[Round "05"]
[TimeControl "180+1"]
[Date "2022.02.22"]
[WhiteClock "0:00:06"]
[BlackClock "0:00:02"]

1. d4 {[%clk 0:03:00]}  Nf6 {[%clk 0:02:59]} 2. c4 {[%clk 0:03:01]}  g6 {[%clk 0:02:58]} 3. Nc3 {[%clk 0:03:01]}  Bg7 {[%clk 0:02:58]} 4. e4 {[%clk 0:03:02]}  d6 {[%clk 0:02:57]} 5. h3 {[%clk 0:03:02]}  O-O {[%clk 0:02:56]} 6. Nf3 {[%clk 0:03:03]}  e5 {[%clk 0:02:54]} 7. d5 {[%clk 0:03:02]}  Nh5 {[%clk 0:02:46]} 8. g3 {[%clk 0:03:02]}  f5 {[%clk 0:02:41]} 9. exf5 {[%clk 0:03:03]}  gxf5 {[%clk 0:02:40]} 10. Nh4 {[%clk 0:03:03]}  Qe8 {[%clk 0:02:36]} 11. Be2 {[%clk 0:03:00]}  Nf6 {[%clk 0:02:35]} 12. Qc2 {[%clk 0:02:56]}  e4 {[%clk 0:02:24]} 13. Be3 {[%clk 0:02:54]}  Na6 {[%clk 0:02:19]} 14. a3 {[%clk 0:02:33]}  Nc5 {[%clk 0:02:14]} 15. O-O-O {[%clk 0:02:25]}  Nfd7 {[%clk 0:01:51]} 16. Ng2 {[%clk 0:02:25]}  Ne5 {[%clk 0:01:46]} 17. Nf4 {[%clk 0:02:26]}  Bh6 {[%clk 0:01:42]} 18. Kb1 {[%clk 0:02:24]}  a5 {[%clk 0:01:31]} 19. Nb5 {[%clk 0:02:15]}  Qf7 {[%clk 0:01:29]} 20. Rdg1 {[%clk 0:02:04]}  Kh8 {[%clk 0:01:25]} 21. Qc3 {[%clk 0:01:41]}  b6 {[%clk 0:00:49]} 22. Nd4 {[%clk 0:01:20]}  Bd7 {[%clk 0:00:43]} 23. Nde6 {[%clk 0:00:49]}  Nxe6 {[%clk 0:00:37]} 24. dxe6 {[%clk 0:00:48]}  Bxe6 {[%clk 0:00:33]} 25. g4 {[%clk 0:00:37]}  fxg4 {[%clk 0:00:32]} 26. Nxe6 {[%clk 0:00:34]}  Qxe6 {[%clk 0:00:30]} 27. Bxh6 {[%clk 0:00:18]}  Qxh6 {[%clk 0:00:30]} 28. hxg4 {[%clk 0:00:18]}  Qg7 {[%clk 0:00:26]} 29. Rg2 {[%clk 0:00:13]}  Ng6 {[%clk 0:00:21]} 30. Qe3 {[%clk 0:00:12]}  Rf4 {[%clk 0:00:15]} 31. Rgh2 {[%clk 0:00:12]}  Raf8 {[%clk 0:00:15]} 32. Bd1 {[%clk 0:00:09]}  Kg8 {[%clk 0:00:12]} 33. c5 {[%clk 0:00:09]}  bxc5 {[%clk 0:00:11]} 34. Bb3+ {[%clk 0:00:09]}  Kh8 {[%clk 0:00:11]} 35. Bc2 {[%clk 0:00:09]}  d5 {[%clk 0:00:10]} 36. Qxc5 {[%clk 0:00:08]}  Ne5 {[%clk 0:00:06]} 37. Qxd5 {[%clk 0:00:07]}  Nxg4 {[%clk 0:00:05]} 38. Rxh7+ {[%clk 0:00:06]}  Qxh7 {[%clk 0:00:05]} 39. Rxh7+ {[%clk 0:00:04]}  Kxh7 {[%clk 0:00:05]} 40. Bxe4+ {[%clk 0:00:04]}  Kh6 {[%clk 0:00:05]} 41. Bc2 {[%clk 0:00:02]}  Nxf2 {[%clk 0:00:04]} 42. Qc6+ {[%clk 0:00:02]}  R8f6 {[%clk 0:00:04]} 43. Qxc7 {[%clk 0:00:03]}  Ng4 {[%clk 0:00:03]} 44. Qxa5 {[%clk 0:00:03]}  Ne3 {[%clk 0:00:02]} 45. Qb5 {[%clk 0:00:03]}  Nxc2 {[%clk 0:00:02]} 46. Kxc2 {[%clk 0:00:03]}  Rf2+ {[%clk 0:00:02]} 47. Kb1 {[%clk 0:00:04]}  R2f5 {[%clk 0:00:03]} 48. Qb4 {[%clk 0:00:03]}  Rf4 {[%clk 0:00:03]} 49. Qb3 {[%clk 0:00:04]}  Rf3 {[%clk 0:00:03]} 50. Qg8 {[%clk 0:00:04]}  Rg6 {[%clk 0:00:02]} 51. Qh8+ {[%clk 0:00:04]}  Kg5 {[%clk 0:00:02]} 52. Qe5+ {[%clk 0:00:04]}  Rf5 {[%clk 0:00:02]} 53. Qe3+ {[%clk 0:00:05]}  Kf6 {[%clk 0:00:02]} 54. Ka2 {[%clk 0:00:05]}  Rgg5 {[%clk 0:00:02]} 55. Qb6+ {[%clk 0:00:05]}  Ke5 {[%clk 0:00:01]} 56. a4 {[%clk 0:00:06]}  Kf4 {[%clk 0:00:02]} 57. b3 {[%clk 0:00:06]}  Re5 {[%clk 0:00:01]} 58. Ka3 {[%clk 0:00:06]}  Re4 {[%clk 0:00:02]} 59. Qf2+ {[%clk 0:00:06]}  Ke5 {[%clk 0:00:02]} 60. Qc5+ {[%clk 0:00:07]}  Kf4 {[%clk 0:00:01]} 61. Qc1+ {[%clk 0:00:07]}  Kg4 {[%clk 0:00:01]} 62. Qg1+ {[%clk 0:00:06]}  Kf5 {[%clk 0:00:01]} 63. Qf1+ {[%clk 0:00:07]}  Ke5 {[%clk 0:00:02]} 64. Qd3 {[%clk 0:00:07]}  Rgg4 {[%clk 0:00:01]} 65. a5 {[%clk 0:00:07]}  Kf4 {[%clk 0:00:01]} 66. Qd2+ {[%clk 0:00:07]}  Re3 {[%clk 0:00:02]} 67. a6 {[%clk 0:00:07]}  Rg3 {[%clk 0:00:02]} 68. Qd4+ {[%clk 0:00:06]}  Kf5 {[%clk 0:00:02]} 69. Qd5+ {[%clk 0:00:06]}  Kf6 {[%clk 0:00:02]} 70. a7 {[%clk 0:00:07]}  Re7 {[%clk 0:00:02]} 71. a8=Q {[%clk 0:00:06]} 1-0


[Site "https://www.chess.com"]

[Event "Titled Tuesday Blitz February 22 Early 2022"]
[White "Boros, Denes"]
[Black "Liyanage, Ranindu Dilshan"]
[WhiteFideId "722340"]
[BlackFideId "9915834"]
[WhiteElo "2464"]
[BlackElo "1858"]
[Result "0-1"]
[Round "05"]
[TimeControl "180+1"]
[Date "2022.02.22"]
[WhiteClock "0:00:10"]
[BlackClock "0:00:13"]

1. e4 {[%clk 0:03:00]}  e6 {[%clk 0:02:42]} 2. Nf3 {[%clk 0:03:00]}  d5 {[%clk 0:02:39]} 3. Nc3 {[%clk 0:03:00]}  Nf6 {[%clk 0:02:37]} 4. Qe2 {[%clk 0:03:00]}  Nc6 {[%clk 0:02:36]} 5. g3 {[%clk 0:02:58]}  Be7 {[%clk 0:02:36]} 6. Bg2 {[%clk 0:02:58]}  O-O {[%clk 0:02:36]} 7. O-O {[%clk 0:02:58]}  d4 {[%clk 0:02:35]} 8. Nd1 {[%clk 0:02:49]}  e5 {[%clk 0:02:36]} 9. d3 {[%clk 0:02:46]}  h6 {[%clk 0:02:28]} 10. Nh4 {[%clk 0:02:45]}  Bg4 {[%clk 0:02:12]} 11. f3 {[%clk 0:02:38]}  Be6 {[%clk 0:02:12]} 12. Nf2 {[%clk 0:02:19]}  Ne8 {[%clk 0:02:04]} 13. Nf5 {[%clk 0:02:18]}  Nd6 {[%clk 0:02:02]} 14. Nxe7+ {[%clk 0:02:14]}  Qxe7 {[%clk 0:02:03]} 15. f4 {[%clk 0:02:15]}  exf4 {[%clk 0:01:56]} 16. Bxf4 {[%clk 0:02:11]}  f5 {[%clk 0:01:56]} 17. Rae1 {[%clk 0:02:02]}  Rae8 {[%clk 0:01:55]} 18. exf5 {[%clk 0:01:46]}  Nxf5 {[%clk 0:01:44]} 19. Qxe6+ {[%clk 0:01:36]}  Qxe6 {[%clk 0:01:43]} 20. Rxe6 {[%clk 0:01:37]}  Rxe6 {[%clk 0:01:43]} 21. Bd5 {[%clk 0:01:38]}  Re8 {[%clk 0:01:40]} 22. Bxc7 {[%clk 0:01:33]}  Ne3 {[%clk 0:01:36]} 23. Bxe6+ {[%clk 0:01:33]}  Rxe6 {[%clk 0:01:37]} 24. Re1 {[%clk 0:01:28]}  Re7 {[%clk 0:01:35]} 25. Bd6 {[%clk 0:01:24]}  Rd7 {[%clk 0:01:35]} 26. Bf4 {[%clk 0:01:23]}  Nxc2 {[%clk 0:01:33]} 27. Re8+ {[%clk 0:01:22]}  Kf7 {[%clk 0:01:32]} 28. Re2 {[%clk 0:01:22]}  N2b4 {[%clk 0:01:30]} 29. a3 {[%clk 0:01:17]}  Nd5 {[%clk 0:01:30]} 30. Ne4 {[%clk 0:01:15]}  g5 {[%clk 0:01:12]} 31. Bd2 {[%clk 0:01:10]}  b6 {[%clk 0:01:03]} 32. Kg2 {[%clk 0:01:03]}  Kg6 {[%clk 0:00:58]} 33. h4 {[%clk 0:01:01]}  g4 {[%clk 0:00:58]} 34. h5+ {[%clk 0:00:36]}  Kxh5 {[%clk 0:00:51]} 35. Nf2 {[%clk 0:00:34]}  Re7 {[%clk 0:00:44]} 36. Re4 {[%clk 0:00:28]}  Rxe4 {[%clk 0:00:42]} 37. dxe4 {[%clk 0:00:29]}  Ne3+ {[%clk 0:00:31]} 38. Kg1 {[%clk 0:00:29]}  Ne5 {[%clk 0:00:29]} 39. Bc1 {[%clk 0:00:21]}  N3c4 {[%clk 0:00:16]} 40. b3 {[%clk 0:00:17]}  Nd6 {[%clk 0:00:16]} 41. Kf1 {[%clk 0:00:17]}  Nf3 {[%clk 0:00:15]} 42. Ke2 {[%clk 0:00:15]}  Nf7 {[%clk 0:00:15]} 43. Nd3 {[%clk 0:00:14]}  Kg6 {[%clk 0:00:09]} 44. Bf4 {[%clk 0:00:13]}  h5 {[%clk 0:00:08]} 45. Bb8 {[%clk 0:00:12]}  a6 {[%clk 0:00:08]} 46. Bc7 {[%clk 0:00:11]}  b5 {[%clk 0:00:09]} 47. Nf4+ {[%clk 0:00:12]}  Kh6 {[%clk 0:00:08]} 48. a4 {[%clk 0:00:09]}  bxa4 {[%clk 0:00:07]} 49. bxa4 {[%clk 0:00:10]}  N7e5 {[%clk 0:00:08]} 50. Ba5 {[%clk 0:00:08]}  d3+ {[%clk 0:00:07]} 51. Kf2 {[%clk 0:00:08]}  d2 {[%clk 0:00:07]} 52. Ke2 {[%clk 0:00:08]}  Nc4 {[%clk 0:00:07]} 53. Bc3 {[%clk 0:00:09]}  Nd6 {[%clk 0:00:07]} 54. e5 {[%clk 0:00:09]}  Ne4 {[%clk 0:00:07]} 55. Bxd2 {[%clk 0:00:07]}  Nfxd2 {[%clk 0:00:06]} 56. e6 {[%clk 0:00:08]}  Nf3 {[%clk 0:00:06]} 57. e7 {[%clk 0:00:07]}  Nf6 {[%clk 0:00:07]} 58. Nd5 {[%clk 0:00:06]}  Ne8 {[%clk 0:00:07]} 59. Nb4 {[%clk 0:00:07]}  Nd4+ {[%clk 0:00:07]} 60. Ke3 {[%clk 0:00:07]}  Nf5+ {[%clk 0:00:08]} 61. Kf4 {[%clk 0:00:07]}  Nxe7 {[%clk 0:00:09]} 62. Nxa6 {[%clk 0:00:08]}  Nd5+ {[%clk 0:00:09]} 63. Ke4 {[%clk 0:00:08]}  Nb6 {[%clk 0:00:10]} 64. Nc5 {[%clk 0:00:07]}  Nd6+ {[%clk 0:00:09]} 65. Ke5 {[%clk 0:00:07]}  Ndc4+ {[%clk 0:00:09]} 66. Kf4 {[%clk 0:00:08]}  Na5 {[%clk 0:00:08]} 67. Ke4 {[%clk 0:00:07]}  Nc6 {[%clk 0:00:07]} 68. Kf4 {[%clk 0:00:07]}  Na5 {[%clk 0:00:07]} 69. Ke4 {[%clk 0:00:08]}  Nbc4 {[%clk 0:00:08]} 70. Kf4 {[%clk 0:00:08]}  Kg6 {[%clk 0:00:09]} 71. Ke4 {[%clk 0:00:08]}  Nb2 {[%clk 0:00:09]} 72. Kf4 {[%clk 0:00:07]}  Nd1 {[%clk 0:00:09]} 73. Ke4 {[%clk 0:00:07]}  Nc3+ {[%clk 0:00:10]} 74. Kf4 {[%clk 0:00:08]}  Ne2+ {[%clk 0:00:10]} 75. Ke3 {[%clk 0:00:08]}  Nxg3 {[%clk 0:00:10]} 76. Kf4 {[%clk 0:00:08]}  Ne2+ {[%clk 0:00:11]} 77. Ke3 {[%clk 0:00:09]}  Nc3 {[%clk 0:00:11]} 78. Kf4 {[%clk 0:00:09]}  Nd5+ {[%clk 0:00:11]} 79. Ke4 {[%clk 0:00:09]}  Nb6 {[%clk 0:00:11]} 80. Kf4 {[%clk 0:00:10]}  Nac4 {[%clk 0:00:12]} 81. Ke4 {[%clk 0:00:07]}  h4 {[%clk 0:00:12]} 82. Kf4 {[%clk 0:00:07]}  g3 {[%clk 0:00:12]} 83. Kf3 {[%clk 0:00:08]}  Ne5+ {[%clk 0:00:11]} 84. Kg2 {[%clk 0:00:07]}  Kg5 {[%clk 0:00:12]} 85. Kh3 {[%clk 0:00:07]}  Kf4 {[%clk 0:00:10]} 86. Ne6+ {[%clk 0:00:07]}  Kf3 {[%clk 0:00:11]} 87. Ng5+ {[%clk 0:00:07]}  Kf2 {[%clk 0:00:11]} 88. Kxh4 {[%clk 0:00:08]}  g2 {[%clk 0:00:11]} 89. Nh3+ {[%clk 0:00:08]}  Kf1 {[%clk 0:00:11]} 90. Kg3 {[%clk 0:00:09]}  Nd3 {[%clk 0:00:11]} 91. Kh2 {[%clk 0:00:09]}  Nf2 {[%clk 0:00:11]} 92. Ng1 {[%clk 0:00:08]}  Ng4+ {[%clk 0:00:11]} 93. Kg3 {[%clk 0:00:06]}  Kxg1 {[%clk 0:00:11]} 94. a5 {[%clk 0:00:07]}  Na8 {[%clk 0:00:11]} 95. Kf4 {[%clk 0:00:08]}  Kf1 {[%clk 0:00:11]} 96. a6 {[%clk 0:00:08]}  g1=Q {[%clk 0:00:12]} 97. a7 {[%clk 0:00:09]}  Qxa7 {[%clk 0:00:12]} 98. Kg3 {[%clk 0:00:10]}  Qe3+ {[%clk 0:00:12]} 99. Kh4 {[%clk 0:00:10]}  Nf2 {[%clk 0:00:12]} 100. Kh5 {[%clk 0:00:11]}  Qg3 {[%clk 0:00:12]} 101. Kh6 {[%clk 0:00:11]}  Ne4 {[%clk 0:00:12]} 102. Kh7 {[%clk 0:00:11]}  Nf6+ {[%clk 0:00:13]} 103. Kh6 {[%clk 0:00:11]}  Nd7 {[%clk 0:00:13]} 104. Kh5 {[%clk 0:00:10]}  Kf2 {[%clk 0:00:13]} 0-1


[Site "https://www.chess.com"]

[Event "Titled Tuesday Blitz February 22 Early 2022"]
[White "Brankovic, Dejan"]
[Black "Warchol, Kamil"]
[WhiteFideId "921602"]
[BlackFideId "21858241"]
[WhiteElo "2209"]
[BlackElo "1905"]
[Result "0-1"]
[Round "05"]
[TimeControl "180+1"]
[Date "2022.02.22"]
[WhiteClock "0:00:03"]
[BlackClock "0:00:12"]

1. e4 {[%clk 0:03:00]}  c5 {[%clk 0:02:58]} 2. Nf3 {[%clk 0:03:00]}  e6 {[%clk 0:02:58]} 3. c3 {[%clk 0:02:56]}  d5 {[%clk 0:02:55]} 4. e5 {[%clk 0:02:56]}  d4 {[%clk 0:02:54]} 5. Bb5+ {[%clk 0:02:52]}  Bd7 {[%clk 0:02:46]} 6. Bxd7+ {[%clk 0:02:51]}  Qxd7 {[%clk 0:02:47]} 7. d3 {[%clk 0:02:48]}  Nc6 {[%clk 0:02:43]} 8. O-O {[%clk 0:02:48]}  Nge7 {[%clk 0:02:39]} 9. cxd4 {[%clk 0:02:44]}  cxd4 {[%clk 0:02:34]} 10. Nbd2 {[%clk 0:02:38]}  Ng6 {[%clk 0:02:19]} 11. Re1 {[%clk 0:02:36]}  Be7 {[%clk 0:02:18]} 12. a4 {[%clk 0:02:34]}  O-O {[%clk 0:02:12]} 13. Nc4 {[%clk 0:02:34]}  Rfd8 {[%clk 0:02:07]} 14. Bd2 {[%clk 0:02:33]}  Rac8 {[%clk 0:02:04]} 15. Qe2 {[%clk 0:02:31]}  Nb4 {[%clk 0:01:58]} 16. Rec1 {[%clk 0:02:19]}  Qd5 {[%clk 0:01:53]} 17. g3 {[%clk 0:02:08]}  h6 {[%clk 0:01:49]} 18. Bxb4 {[%clk 0:01:53]}  Bxb4 {[%clk 0:01:47]} 19. h4 {[%clk 0:01:49]}  Ne7 {[%clk 0:01:44]} 20. Nfd2 {[%clk 0:01:34]}  Nc6 {[%clk 0:01:34]} 21. f4 {[%clk 0:01:27]}  b5 {[%clk 0:01:06]} 22. axb5 {[%clk 0:01:25]}  Qxb5 {[%clk 0:01:07]} 23. Ne4 {[%clk 0:01:24]}  Rb8 {[%clk 0:01:00]} 24. h5 {[%clk 0:01:23]}  Be7 {[%clk 0:00:55]} 25. Kh2 {[%clk 0:01:19]}  a6 {[%clk 0:00:53]} 26. Ra2 {[%clk 0:01:14]}  Nb4 {[%clk 0:00:52]} 27. Ra5 {[%clk 0:01:11]}  Qb7 {[%clk 0:00:49]} 28. Rca1 {[%clk 0:01:08]}  Ra8 {[%clk 0:00:48]} 29. R5a4 {[%clk 0:01:02]}  Nd5 {[%clk 0:00:48]} 30. Ned6 {[%clk 0:00:51]}  Bxd6 {[%clk 0:00:47]} 31. Nxd6 {[%clk 0:00:51]}  Qb6 {[%clk 0:00:47]} 32. Nc4 {[%clk 0:00:51]}  Qb7 {[%clk 0:00:46]} 33. Qg2 {[%clk 0:00:48]}  Qb5 {[%clk 0:00:45]} 34. Qe2 {[%clk 0:00:43]}  Nb4 {[%clk 0:00:43]} 35. Ra5 {[%clk 0:00:42]}  Qb7 {[%clk 0:00:41]} 36. R5a3 {[%clk 0:00:38]}  Nd5 {[%clk 0:00:41]} 37. Qg2 {[%clk 0:00:37]}  Qb5 {[%clk 0:00:37]} 38. Kh3 {[%clk 0:00:36]}  Rdb8 {[%clk 0:00:34]} 39. Qe4 {[%clk 0:00:35]}  Qb7 {[%clk 0:00:33]} 40. Qxd4 {[%clk 0:00:32]}  Nb4 {[%clk 0:00:30]} 41. Qe4 {[%clk 0:00:31]}  Qb5 {[%clk 0:00:24]} 42. Nd6 {[%clk 0:00:28]}  Qc5 {[%clk 0:00:21]} 43. d4 {[%clk 0:00:27]}  Qc2 {[%clk 0:00:21]} 44. Rc3 {[%clk 0:00:19]}  Qxe4 {[%clk 0:00:20]} 45. Nxe4 {[%clk 0:00:17]}  Nd5 {[%clk 0:00:20]} 46. Rc2 {[%clk 0:00:16]}  Rb4 {[%clk 0:00:20]} 47. Rd2 {[%clk 0:00:14]}  a5 {[%clk 0:00:19]} 48. Nc5 {[%clk 0:00:14]}  a4 {[%clk 0:00:19]} 49. Rc2 {[%clk 0:00:13]}  Rxd4 {[%clk 0:00:18]} 50. b3 {[%clk 0:00:13]}  a3 {[%clk 0:00:18]} 51. Rca2 {[%clk 0:00:11]}  Rc8 {[%clk 0:00:13]} 52. Na4 {[%clk 0:00:08]}  Rd3 {[%clk 0:00:13]} 53. Rxa3 {[%clk 0:00:08]}  Nxf4+ {[%clk 0:00:12]} 54. Kg4 {[%clk 0:00:07]}  Nd5 {[%clk 0:00:13]} 55. b4 {[%clk 0:00:06]}  Rd4+ {[%clk 0:00:13]} 56. Kh3 {[%clk 0:00:06]}  Rxb4 {[%clk 0:00:14]} 57. Rd3 {[%clk 0:00:03]}  Ra8 {[%clk 0:00:13]} 58. Rda3 {[%clk 0:00:03]}  Rb7 {[%clk 0:00:12]} 0-1


[Site "https://www.chess.com"]

[Event "Titled Tuesday Blitz February 22 Early 2022"]
[White "Chincholimath, Halsagar"]
[Black "Sanchez, Robert"]
[WhiteFideId "5022487"]
[BlackFideId "2034360"]
[WhiteElo "1737"]
[BlackElo "2271"]
[Result "1-0"]
[Round "05"]
[TimeControl "180+1"]
[Date "2022.02.22"]
[WhiteClock "0:00:39"]
[BlackClock "0:00:02"]

1. e4 {[%clk 0:03:00]}  e6 {[%clk 0:03:00]} 2. d4 {[%clk 0:03:00]}  d5 {[%clk 0:03:00]} 3. e5 {[%clk 0:02:59]}  c5 {[%clk 0:03:00]} 4. c3 {[%clk 0:02:59]}  Nc6 {[%clk 0:03:00]} 5. Nf3 {[%clk 0:02:58]}  Bd7 {[%clk 0:03:00]} 6. Bd3 {[%clk 0:02:57]}  cxd4 {[%clk 0:02:48]} 7. cxd4 {[%clk 0:02:54]}  Qb6 {[%clk 0:02:49]} 8. O-O {[%clk 0:02:54]}  Nxd4 {[%clk 0:02:49]} 9. Nxd4 {[%clk 0:02:49]}  Qxd4 {[%clk 0:02:50]} 10. Qe2 {[%clk 0:02:47]}  a6 {[%clk 0:02:49]} 11. Kh1 {[%clk 0:02:45]}  Ne7 {[%clk 0:02:45]} 12. f4 {[%clk 0:02:45]}  Nc6 {[%clk 0:02:43]} 13. Be3 {[%clk 0:02:32]}  Qb4 {[%clk 0:02:38]} 14. a3 {[%clk 0:02:23]}  Qa5 {[%clk 0:02:38]} 15. b4 {[%clk 0:02:14]}  Bxb4 {[%clk 0:02:30]} 16. axb4 {[%clk 0:02:13]}  Qxa1 {[%clk 0:02:29]} 17. Bc5 {[%clk 0:02:04]}  b6 {[%clk 0:02:18]} 18. Bd6 {[%clk 0:02:02]}  Ne7 {[%clk 0:01:48]} 19. Qg4 {[%clk 0:01:55]}  Bb5 {[%clk 0:01:19]} 20. Qg5 {[%clk 0:01:32]}  Ra7 {[%clk 0:01:02]} 21. Bxb5+ {[%clk 0:01:20]}  axb5 {[%clk 0:01:01]} 22. Qxg7 {[%clk 0:01:02]}  Rg8 {[%clk 0:00:58]} 23. Qxh7 {[%clk 0:01:01]}  Qb2 {[%clk 0:00:53]} 24. Rg1 {[%clk 0:00:57]}  Rg6 {[%clk 0:00:26]} 25. Qh8+ {[%clk 0:00:46]}  Kd7 {[%clk 0:00:25]} 26. Qb8 {[%clk 0:00:46]}  Qa1 {[%clk 0:00:13]} 27. Qxb6 {[%clk 0:00:41]}  Nf5 {[%clk 0:00:10]} 28. Rc1 {[%clk 0:00:39]}  Nxd6 {[%clk 0:00:03]} 29. Qxd6+ {[%clk 0:00:38]}  Ke8 {[%clk 0:00:02]} 30. Rc8# {[%clk 0:00:39]} 1-0


[Site "https://www.chess.com"]

[Event "Titled Tuesday Blitz February 22 Early 2022"]
[White "Dahanayake, Isara Banidu"]
[Black "Prieto Aranguren, Alain"]
[WhiteFideId "9932631"]
[BlackFideId "2268906"]
[WhiteElo "1394"]
[BlackElo "2235"]
[Result "0-1"]
[Round "05"]
[TimeControl "180+1"]
[Date "2022.02.22"]
[WhiteClock "0:00:49"]
[BlackClock "0:00:36"]

1. e4 {[%clk 0:03:00]}  e5 {[%clk 0:02:54]} 2. Nf3 {[%clk 0:03:00]}  d5 {[%clk 0:02:53]} 3. Nxe5 {[%clk 0:02:40]}  dxe4 {[%clk 0:02:51]} 4. d4 {[%clk 0:02:40]}  Nf6 {[%clk 0:02:43]} 5. Bc4 {[%clk 0:02:38]}  Be6 {[%clk 0:02:30]} 6. Bxe6 {[%clk 0:02:38]}  fxe6 {[%clk 0:02:29]} 7. O-O {[%clk 0:02:38]}  Bd6 {[%clk 0:02:24]} 8. Bg5 {[%clk 0:02:31]}  Nc6 {[%clk 0:02:19]} 9. Nxc6 {[%clk 0:02:10]}  bxc6 {[%clk 0:02:18]} 10. Nc3 {[%clk 0:02:09]}  Rb8 {[%clk 0:02:17]} 11. Nxe4 {[%clk 0:02:08]}  Rxb2 {[%clk 0:02:07]} 12. Nxf6+ {[%clk 0:02:01]}  gxf6 {[%clk 0:02:05]} 13. Qh5+ {[%clk 0:02:02]}  Kd7 {[%clk 0:01:59]} 14. Qf7+ {[%clk 0:01:59]}  Qe7 {[%clk 0:01:55]} 15. Qxf6 {[%clk 0:01:56]}  Qxf6 {[%clk 0:01:52]} 16. Bxf6 {[%clk 0:01:57]}  Rf8 {[%clk 0:01:52]} 17. Bg5 {[%clk 0:01:42]}  Rxc2 {[%clk 0:01:50]} 18. Be3 {[%clk 0:01:42]}  Rb8 {[%clk 0:01:38]} 19. Rfc1 {[%clk 0:01:40]}  Rbb2 {[%clk 0:01:36]} 20. Rxc2 {[%clk 0:01:39]}  Rxc2 {[%clk 0:01:36]} 21. g4 {[%clk 0:01:34]}  a5 {[%clk 0:01:35]} 22. h4 {[%clk 0:01:34]}  a4 {[%clk 0:01:35]} 23. h5 {[%clk 0:01:28]}  Ke7 {[%clk 0:01:20]} 24. g5 {[%clk 0:01:24]}  a3 {[%clk 0:01:14]} 25. Kg2 {[%clk 0:01:16]}  Kf7 {[%clk 0:01:10]} 26. Kf3 {[%clk 0:01:16]}  c5 {[%clk 0:01:05]} 27. dxc5 {[%clk 0:00:59]}  Be5 {[%clk 0:01:05]} 28. Rc1 {[%clk 0:01:00]}  Rxa2 {[%clk 0:00:59]} 29. Rc4 {[%clk 0:00:54]}  Rb2 {[%clk 0:00:55]} 30. Bd4 {[%clk 0:00:53]}  Bxd4 {[%clk 0:00:45]} 31. Rxd4 {[%clk 0:00:54]}  Rb5 {[%clk 0:00:41]} 32. Ra4 {[%clk 0:00:54]}  Rxc5 {[%clk 0:00:37]} 33. g6+ {[%clk 0:00:53]}  hxg6 {[%clk 0:00:37]} 34. hxg6+ {[%clk 0:00:54]}  Kxg6 {[%clk 0:00:37]} 35. Rxa3 {[%clk 0:00:55]}  Kf5 {[%clk 0:00:37]} 36. Rb3 {[%clk 0:00:49]}  e5 {[%clk 0:00:36]} 37. Kg3 {[%clk 0:00:49]}  Rc4 {[%clk 0:00:35]} 38. Kf3 {[%clk 0:00:49]}  c5 {[%clk 0:00:35]} 39. Ke3 {[%clk 0:00:49]}  Rb4 {[%clk 0:00:34]} 40. Rc3 {[%clk 0:00:48]}  c4 {[%clk 0:00:35]} 41. Ra3 {[%clk 0:00:49]}  Rb3+ {[%clk 0:00:35]} 42. Rxb3 {[%clk 0:00:49]}  cxb3 {[%clk 0:00:35]} 43. Kd2 {[%clk 0:00:50]}  Kf4 {[%clk 0:00:35]} 44. Kc3 {[%clk 0:00:48]}  Kf3 {[%clk 0:00:35]} 45. Kxb3 {[%clk 0:00:48]}  Kxf2 {[%clk 0:00:36]} 46. Kc3 {[%clk 0:00:48]}  e4 {[%clk 0:00:36]} 47. Kd4 {[%clk 0:00:48]}  e3 {[%clk 0:00:36]} 48. Kd3 {[%clk 0:00:49]}  e2 {[%clk 0:00:36]} 49. Kd2 {[%clk 0:00:49]}  e1=Q+ {[%clk 0:00:36]} 0-1


[Site "https://www.chess.com"]

[Event "Titled Tuesday Blitz February 22 Early 2022"]
[White "Deac, Bogdan-Daniel"]
[Black "Matinian, Nikita"]
[WhiteFideId "1226380"]
[BlackFideId "24129100"]
[WhiteElo "2646"]
[BlackElo "2422"]
[Result "1-0"]
[Round "05"]
[TimeControl "180+1"]
[Date "2022.02.22"]
[WhiteClock "0:00:54"]
[BlackClock "0:00:07"]

1. e4 {[%clk 0:03:00]}  e5 {[%clk 0:03:00]} 2. Nf3 {[%clk 0:03:01]}  Nc6 {[%clk 0:03:00]} 3. Bc4 {[%clk 0:03:01]}  Nf6 {[%clk 0:02:59]} 4. Ng5 {[%clk 0:03:01]}  d5 {[%clk 0:02:58]} 5. exd5 {[%clk 0:03:02]}  Na5 {[%clk 0:02:58]} 6. Bb5+ {[%clk 0:03:02]}  c6 {[%clk 0:02:58]} 7. dxc6 {[%clk 0:03:03]}  bxc6 {[%clk 0:02:59]} 8. Bd3 {[%clk 0:03:03]}  h6 {[%clk 0:02:55]} 9. Ne4 {[%clk 0:03:01]}  Nd5 {[%clk 0:02:49]} 10. O-O {[%clk 0:03:01]}  g6 {[%clk 0:02:43]} 11. Nbc3 {[%clk 0:02:35]}  Nf4 {[%clk 0:02:36]} 12. Be2 {[%clk 0:02:34]}  Bg7 {[%clk 0:02:34]} 13. d3 {[%clk 0:02:30]}  O-O {[%clk 0:02:07]} 14. Bf3 {[%clk 0:02:19]}  f5 {[%clk 0:02:04]} 15. Nc5 {[%clk 0:02:06]}  g5 {[%clk 0:01:46]} 16. g3 {[%clk 0:02:05]}  Nh3+ {[%clk 0:01:43]} 17. Kh1 {[%clk 0:02:04]}  f4 {[%clk 0:01:35]} 18. N3e4 {[%clk 0:01:50]}  fxg3 {[%clk 0:01:18]} 19. hxg3 {[%clk 0:01:37]}  Qe7 {[%clk 0:01:09]} 20. Be3 {[%clk 0:01:27]}  Rb8 {[%clk 0:00:43]} 21. Bg4 {[%clk 0:01:23]}  Nf4 {[%clk 0:00:17]} 22. Bd2 {[%clk 0:01:04]}  Nb7 {[%clk 0:00:16]} 23. Nxb7 {[%clk 0:00:59]}  Rxb7 {[%clk 0:00:17]} 24. Bxc8 {[%clk 0:00:55]}  Rxc8 {[%clk 0:00:18]} 25. gxf4 {[%clk 0:00:55]}  gxf4 {[%clk 0:00:18]} 26. Qg4 {[%clk 0:00:54]}  Kh8 {[%clk 0:00:07]} 27. Qxc8+ {[%clk 0:00:54]} 1-0


[Site "https://www.chess.com"]